Cogmind - Beta 16 @@@ ROGUE MODE // 2025.12.27 @ 00:41:32 Player: tritri Result: Destroyed by G-47 Trooper with Particle Gun Performance ------------- Evolutions (0) 0 Regions Visited (2) 400 Robots Destroyed (17) 85 Value Destroyed (358) 358 Prototype IDs (0) 0 Alien Tech Used (0) 0 Bonus (0) 0 TOTAL SCORE: 843 Bonus ------- None Cogmind --------- Core Integrity 0/250 Matter 295/300 Energy 97/100 System Corruption 7% Temperature Warm (134) Movement Core (100) Ox1 Location -10/Mines Parts ------- > --- POWER (1) -------- (None) > --- PROPULSION (2) --- (None) > --- UTILITY (2) ------ Small Storage Unit > --- WEAPON (2) ------- Small Laser > --- INVENTORY (8) ---- Light Ion Engine Aluminum Leg Compact Wheel Flight Unit Flight Unit Small Matter Pod (50) Assault Rifle Peak State ------------ > --- POWER ------------ Ion Engine > --- PROPULSION ------- Aluminum Leg Aluminum Leg > --- UTILITY ---------- Small Storage Unit Targeting Computer > --- WEAPON ----------- Small Laser Assault Rifle > --- INVENTORY -------- Light Ion Engine Grenade Launcher [Rating: 7] Favorites ----------- Power Ion Engine Engine Ion Engine Propulsion Aluminum Leg Leg Aluminum Leg Utility Small Storage Unit Storage Small Storage Unit Processor Targeting Computer Weapon Small Laser Energy Gun Small Laser Ballistic Gun Assault Rifle Launcher Grenade Launcher Special Weapon Mining Laser Build | -11 -10 -10 ------- Run | Yrd Mat Min Slots Evolved . | . . . Power . | . . . Propulsion . | . . . Utility . | . . . Weapon . | . . . Parts Attached 10 | 7 1 2 Power 2 | 2 . . Engine 2 | 2 . . Core . | . . . Reactor . | . . . Propulsion 2 | 2 . . Treads . | . . . Leg 2 | 2 . . Wheel . | . . . Hover . | . . . Flight . | . . . Utility 2 | 1 1 . Device . | . . . Storage 1 | 1 . . Processor 1 | . 1 . Hackware . | . . . Protection . | . . . Artifact . | . . . Weapon 4 | 2 . 2 Energy Gun 1 | 1 . . Energy Cannon . | . . . Ballistic Gun 1 | 1 . . Ballistic Cannon . | . . . Launcher 1 | . . 1 Special Weapon 1 | . . 1 Impact Weapon . | . . . Slashing Weapon . | . . . Piercing Weapon . | . . . Special Melee Weapon . | . . . Unidentified Prototypes . | . . . Parts Lost 6 | . 1 5 Power 1 | . 1 . Propulsion 2 | . . 2 Utility 1 | . . 1 Weapon 2 | . . 2 Highest Loss Streak 2 | . 1 2 To Critical Strikes . | . . . Average Backups 5 | . 5 7 Power . | . 1 1 Propulsion 2 | . 2 4 Utility . | . . 1 Weapon . | . . 1 Tool/Special . | . . . Unused Backups 5 | . . 5 Power . | . . . Propulsion 4 | . . 4 Utility 1 | . . 1 Weapon . | . . . Tool/Special . | . . . Average Slot Usage (%) 78 | . 96 54 Engine 7 | . 12 . Leg 19 | . 28 7 Storage 14 | . 14 14 Processor 9 | . 12 6 Energy Gun 14 | . 14 14 Ballistic Gun 8 | . 14 . Launcher 4 | . . 10 Peak Build Rating 7 | 6 7 6 Average Rating 5 | 4 6 3 On Entrance 4 | . 6 6 Avg Prop Armor Cover (%) . | . . . Naked Turns . | . . . Heaviest Build 13 | 13 13 9 Greatest Support 20 | 20 20 20 Greatest Overweight (x) 2 | . . 2 Average Overweight (x) . | . . 1 Largest Inventory Capacity 8 | 8 8 8 Average Capacity 7 | 7 8 8 Most Carried 8 | 1 7 8 Average Carried 5 | . 5 7 Final Capacity 8 | 8 8 8 Final Carried 7 | 1 7 7 Class Distribution -------------------- 100% | Mutant Dominant Class ---------------- Mutant | -10/Materials Mutant | -10/Mines Resources | -11 -10 -10 ----------- Run | Yrd Mat Min Matter Collected 429 | 77 256 96 Remotely . | . . . Salvage Created 437 | . 316 121 Parts 27 | . 20 7 Haulers Intercepted . | . . . Recyclers Shooed . | . . . Parts Field Recycled . | . . . Retrieved Matter . | . . . Parts Self-Destructed . | . . . Prevented . | . . . Parts Restored . | . . . Kills | -11 -10 -10 ------- Run | Yrd Mat Min Combat Hostiles Destroyed 16 | . 14 2 Guns 16 | . 14 2 Classes Destroyed 3 | . 2 1 Tunneler 1 | . . 1 Swarmer 9 | . 9 . Grunt 7 | . 5 2 Best Kill Streak 3 | . 3 2 Combat Bots Only 3 | . 3 2 Max Kills in Single Turn 2 | . 2 1 Gunslinging 1 | . 1 . Exploded . | . . . Melee . | . . . Uniques/NPCs Destroyed . | . . . Combat | -11 -10 -10 -------- Run | Yrd Mat Min Hostile Shots Fired 80 | . 57 23 Missed 18 | . 14 4 Hits 62 | . 43 19 Projectile 62 | . 43 19 Critical Strikes 2 | . . 2 Damage Taken 837 | . 374 463 Core 259 | . 52 207 Absorbed by Shields . | . . . Core Remaining (%) 100 | 100 . . Volleys Fired 37 | . 21 16 Largest 2 | . 2 2 Hottest 70 | . 60 70 Shots Fired 63 | . 42 21 Gun 58 | . 42 16 Cannon . | . . . Launcher 5 | . . 5 Special . | . . . Kinetic 21 | . 21 . Thermal 37 | . 21 16 Explosive 5 | . . 5 Electromagnetic . | . . . Robot Hit Streak 10 | . 10 5 Robot Miss Streak 4 | . 4 3 Penetration Max . | . . . Secondary Targets 2 | . 2 . Max Gunslinging Chain 1 | . 1 . Shots Hit Robots 35 | . 27 8 Core Hits 28 | . 19 9 Critical Kills . | . . . Critical Parts Destroyed . | . . . Critical Strikes . | . . . Melee Attacks . | . . . Impact . | . . . Slashing . | . . . Piercing . | . . . Sneak Attacks . | . . . Combat Hostiles . | . . . Follow-up Attacks . | . . . Damage Inflicted 473 | . 312 161 Guns 391 | . 302 89 Cannons . | . . . Explosions 68 | . . 68 Melee . | . . . Ramming 14 | . 10 4 Kinetic 138 | . 138 . Thermal 253 | . 164 89 Explosive 68 | . . 68 Electromagnetic . | . . . Impact . | . . . Slashing . | . . . Piercing . | . . . Highest Corruption 7 | . . 7 Average Corruption 7 | . . 7 Corruption Purged . | . . . Corruption Blocked . | . . . Effects 8 | . . 8 Message Errors 4 | . . 4 Matter Fused 1 | . . 1 Heat Flow Errors 1 | . . 1 Energy Discharges 1 | . . 1 Data Loss (major) 1 | . . 1 Overload Shots . | . . . Overflow Damage . | . . . Projectiles . | . . . Explosions . | . . . Melee . | . . . Knockbacks . | . . . Impact . | . . . Kinetic . | . . . Secondary . | . . . Self-Inflicted Damage 62 | . . 62 Shots 2 | . . 2 Rammed . | . . . Targets Rammed 5 | . 3 2 Kicked 5 | . 3 2 Crushed . | . . . Highest Temperature 200 | . 18 200 Average Temperature 55 | . 11 83 Received Heat Transfer 264 | . 72 192 Siege Activations . | . . . Martial Activations . | . . . Shielding Activations . | . . . Robots Disrupted . | . . . Combat Hostiles . | . . . Robots Corrupted . | . . . Combat Hostiles . | . . . Parts Fried . | . . . Impact Corruptions . | . . . Robots Melted . | . . . Combat Hostiles . | . . . Parts Melted 1 | . . 1 Heat Transferred 575 | . 375 200 Parts Sabotaged . | . . . Parts Stolen . | . . . Parts Stripped . | . . . Power Chain Reactions . | . . . Alert | -11 -10 -10 ------- Run | Yrd Mat Min Maximum Alert Level . | . . . Low Security (%) 100 | 100 100 100 Level 1 . | . . . Level 2 . | . . . Level 3 . | . . . Level 4 . | . . . Level 5 . | . . . High Security . | . . . Max Security . | . . . Peak Influence 140 | . 140 60 Initial 45 | . . 45 Average 32 | . 52 11 Influence Increases 445 | . 346 99 Destroy 0b10 Robot/C 320 | . 280 40 Destroy 0b10 Robot/NC 5 | . . 5 Destroy Leader 60 | . 50 10 Disable Machine 15 | . . 15 Destroy Structure 30 | . 1 29 Lose Combat Pursuer 15 | . 15 . Influence Decreases 442 | . 230 212 Entered New Map 71 | . . 71 Time Decay 308 | . 220 88 Lost Part 43 | . 10 33 Lost Ally 20 | . . 20 Squads Dispatched 3 | . 3 . Investigation 1 | . 1 . Extermination . | . . . Reinforcement 2 | . 2 . Assault . | . . . Garrison . | . . . Intercept . | . . . Searches Triggered . | . . . Construction Impeded . | . . . Haulers Reinforced . | . . . Active Scanning Responses . | . . . Cargo Convoy Interrupts . | . . . Stealth | -11 -10 -10 --------- Run | Yrd Mat Min Distress Signals . | . . . Communications Jammed . | . . . Distress Signals . | . . . Times Spotted 23 | . 19 4 Peak Tracking Total 4 | . 4 2 Tactical Retreats 1 | . 1 . Traps | -11 -10 -10 ------- Run | Yrd Mat Min Traps Triggered 1 | . 1 . Indirectly . | . . . Trap Hack Attempts . | . . . Triggered . | . . . Disarmed . | . . . Reprogrammed . | . . . Reused . | . . . Traps Extracted . | . . . Installed . | . . . Triggered . | . . . Machines | -11 -10 -10 ---------- Run | Yrd Mat Min Machines Disabled 1 | . . 1 Max in Single Turn . | . . . Machines Repaired . | . . . Machines Dismantled . | . . . Machines Sabotaged . | . . . Overloaded Fab Kills . | . . . Hacking | -11 -10 -10 --------- Run | Yrd Mat Min Machines Accessed 2 | . 2 . Terminals 2 | . 2 . Fabricators . | . . . Repair Stations . | . . . Recycling Units . | . . . Scanalyzers . | . . . Garrison Access . | . . . Total Hacks 5 | . 5 . Successful 3 | . 3 . Failed 2 | . 2 . Catastrophic . | . . . Database Lockouts . | . . . Manual . | . . . Terminals 5 | . 5 . Fabricators . | . . . Repair Stations . | . . . Recycling Units . | . . . Scanalyzers . | . . . Garrison Access . | . . . Terminal Hacks 3 | . 3 . Record 2 | . 2 . Zone Layout 1 | . 1 . Fabricator Hacks . | . . . Repair Station Hacks . | . . . Recycling Unit Hacks . | . . . Scanalyzer . | . . . Garrison Access Hacks . | . . . Unauthorized Hacks . | . . . Terminals . | . . . Fabricators . | . . . Repair Stations . | . . . Recycling Units . | . . . Scanalyzers . | . . . Garrison Access . | . . . Data Cores Recovered . | . . . Used . | . . . Hacking Detections . | . . . Full Trace Events . | . . . Feedback Events . | . . . Feedback Blocked . | . . . Robot Schematics Acquired . | . . . Robots Built . | . . . Authchips . | . . . Time . | . . . Total Robot Build Rating . | . . . Part Schematics Acquired . | . . . Parts Built . | . . . Authchips . | . . . Time . | . . . Total Part Build Rating . | . . . Part Studies Acquired . | . . . Parts Repaired . | . . . Time . | . . . Parts Recycled . | . . . Recycled Matter . | . . . Retrieved Matter . | . . . Retrieved Components . | . . . Parts Scanalyzed . | . . . Part Schematics Acquired . | . . . Parts Damaged . | . . . Bothacking | -11 -10 -10 ------------ Run | Yrd Mat Min Used RIF Installer . | . . . Robots Hacked . | . . . Non-combat . | . . . Combat . | . . . Robot Hacks Applied . | . . . Relay Couplers Released . | . . . Fabnet Peak Effective % . | . . . Robots Rewired . | . . . Allies Hacked . | . . . Hacks Repelled . | . . . Allies | -11 -10 -10 -------- Run | Yrd Mat Min Total Allies 1 | . . 1 Largest Group 1 | . . 1 Highest-Rated Group 31 | . . 31 Highest-Rated Ally 31 | . . 31 Total Orders . | . . . Ally Attacks 7 | . . 7 Total Damage 101 | . . 101 Kills . | . . . Allies Corrupted . | . . . Allies Melted . | . . . Intel | -11 -10 -10 ------- Run | Yrd Mat Min Active Infowar (turns) . | . . . Robot Analysis Total . | . . . Derelict Logs Recovered 2 | . . 2 Drone Launches . | . . . Drone Recoveries . | . . . Exploration | -11 -10 -10 ------------- Run | Yrd Mat Min Turns Passed 1078 | 75 580 423 Spaces Moved 734 | 57 403 274 Core 148 | 5 . 143 Treads . | . . . Legs 586 | 52 403 131 Wheels . | . . . Hover . | . . . Flight . | . . . Fastest Speed 50 | 50 120 120 Average Speed 125 | 113 120 135 Slowest Speed 150 | 120 120 150 Overloaded Moves . | . . . Propulsion Burnouts . | . . . Robots Hopped . | . . . Potential Cave-ins 2 | . . 2 Cave-ins Triggered 2 | . . 2 Exploration Rate (%) 33 | 4 60 37 Regions Visited 2 Branch Regions 1 Pre-discovered Areas 1 | . . 1 Known Exits Taken . | . . . Unknown Exits Taken 2 | 1 1 . Scrap Searched . | . . . Spaces Dug 8 | . . 8 Terrain Destroyed 43 | . . 43 Melee . | . . . Projectile . | . . . AOE 43 | . . 43 Terrain Rammed . | . . . Walls Destroyed . | . . . Machines Disabled . | . . . Actions | -11 -10 -10 --------- Run | Yrd Mat Min Total 824 | 63 456 305 Wait 31 | . 23 8 Move 732 | 56 402 274 Hop . | . . . Pick Up 8 | . 6 2 Fast Attach 7 | 6 1 . Attach 2 | . . 2 Detach . | . . . Swap 1 | 1 . . Drop 1 | . . 1 Fire 37 | . 21 16 Melee . | . . . Ram . | . . . Kick 5 | . 3 2 Crush . | . . . Escape Stasis . | . . . Rewire . | . . . Trap . | . . . Miscellaneous . | . . . Route ------- -11/Scrapyard -10/Materials (discovered 2 exits: [*Mat] / *Min) -10/Mines (discovered 2 exits: [*Mat x2]) History --------- Turn | Location | Event 3 | -11/Scrapyard | Discovered new exit (range 16) 76 | -11/Scrapyard | Entered Materials 307 | -10/Materials | Build established: Mutant 551 | -10/Materials | Discovered new exit (range 4) 646 | -10/Materials | Discovered new exit (range 9) 656 | -10/Materials | Entered Mines 656 | -10/Mines | Discovered new exit (range 9) 661 | -10/Mines | Received a Mining Laser from a helpful Derelict 842 | -10/Mines | Crushed by falling debris 842 | -10/Mines | Crushed by falling debris 914 | -10/Mines | Discovered new exit (range 5) 915 | -10/Mines | Learned location of Zion (-7) 1008 | -10/Mines | Learned Materials terminal intel 1046 | -10/Mines | Core integrity fell below 50% 1074 | -10/Mines | Core integrity fell below 20% 1079 | -10/Mines | Destroyed by G-47 Trooper with Particle Gun Last Messages --------------- 00893_ System corrupted: Matter fused (-8). 00894_ Acquired 2 matter. 00908_ WACHF,WPRK RYVE=JER|PHLRD8=3BFM9NKW 00914_ EXIT=FOUND 00915_ Acquired derelict log, extracted data. World map updated: -7/Zion. 00927_ Connecting with Terminal... 00927_ Current location identified: Mines 00932_ H2:ZLM9JOEQD0BPMNT 6OX, 3# KKT&KMSLYYQD 00985_ System corrupted: Substantial component data lost. 01008_ Acquired derelict log, extracted data. Data stored: Materials terminal intel. 01011_ NOVD#6=GV,P:8JFMD#J8KZRN 01028_ MG /RV9X/ ADM,ZNGK VT 01045_ Critical hit (Burn: +37). 01067_ System corrupted: Heat flow error (+216). 01069_ T-07 Excavator destroyed. 01072_ Acquired 16 matter. 01077_ Grenade Launcher destroyed. Map ----- +----------------------------------------------------+ | | | | | | | | | | | | | | | | | | | | | | | | | | | | | ????????????????????????????????????????????? | | ????????????????????????????????????????????? | | ????????????????????????????????????????????? | | ????????????????????????????????????????????? | | ????????????????????????????????????????????? | | ????????????????????????????????????????????? | | ????????????????????????????????????????????? | | ????????????????????????????????????????????? | | ???????????????????#?????????????####???????? | | ?????????????????### ###??????### ##??????? | | ?????????????????# ######## #??????? | | ????????????????# g |%@ ##??????? | | ????????????????# g *#### ###???????? | | ????????????????# # ###### ##?????????? | | ?????????????????# ###?# ##??????????? | | ?????????????????# #???# ##???????????? | | ????????????????? ???# ## ####????????????? | | ????????????????? ?### ## #???????????????? | | ????????????????? ?# #???????????????? | | ?????????????????"" ?## ####???????????????? | | ?????????????????"" ??# ##?????????????????? | | ?????????????????"" ?## ##????????????????? | | ??????????????????? ## #????????????????? | | ??????????????????? # #????????????????? | | ???????????????????## ##????????????????? | | ????????????????????## ##????????????????? | | ?????????????????????# #????????????????? | | ?????????????????????## #????????????????? | | ??????????????????????## ##???????????????? | | ???????????????????????# #???????????????? | | ??????????????????????## #???????????????? | | ??????????????????????# #???????????????? | | ?????????# ??????????# ##???????????????? | | ???????? ????????## #????????????????? | | ????????# ###???## #????????????????? | | ????????# #### ########??????????? | +----------------------------------------------------+ Best States ------------- Heat Dissipation 25 Energy Generation 10 Energy Capacity 250 Matter Stores 300 Matter Capacity 300 Sight Range 16 Terrain Scan Density 10 Evasion (%) 55 Targeting Accuracy 5 Item Schematics ----------------- None Robot Schematics ------------------ None Fabricated ------------ Nothing Repaired ---------- Nothing Studied --------- None Alien Tech Used ----------------- None Achievements -------------- None Challenges ------------ None Game ------ Seed SigixExpertBooster Manual? 0 Play Time 00:12:57 Cumulative 2.2 hours Start 2025.12.27 @ 00:30:35 End 2025.12.27 @ 00:41:32 Sessions 1 Manual Loads 0 Difficulty Rogue Special Mode None Game No. 6 Rogue 6 Adventurer 0 Explorer 0 Win Type - Total 0 Types 0/0/0/0/0/0/0/0/0/0 Lore% 2 Gallery% 4 Achievement% 6 Wizard Run 0 Options --------- Layout 1 ASCII 0 Keyboard 1 Movement Vi Keybinds 0 Fullscreen 1 Font 24/Smallcaps Map View 50x35 Zoom Use 0% Tactical HUD 1 Map Filters NONE Filters NONE Steam 1 RUN: 12bea698-8321-48ce-a7c0-aff23b6e45dd